bitfinex/quotes_BTCUSD_20241025
["timestamp","ask_amount","ask_price","bid_price","bid_amount"]
[1729821541416,0.01271076,67935.0,67934.0,0.147201]
[1729821541626,0.02651415,67935.0,67934.0,0.147201]
[1729821542458,0.01547139,67935.0,67934.0,0.147201]
[1729821542830,0.001668,67935.0,67934.0,0.147201]
[1729821545994,0.01547178,67935.0,67934.0,0.147201]
[1729821547963,0.01271059,67935.0,67934.0,0.147201]
[1729821548179,0.02651383,67935.0,67934.0,0.147201]
[1729821548445,0.02651383,67935.0,67932.0,0.004698]
[1729821548446,0.20391383,67935.0,67932.0,0.004698]
[1729821548679,0.19011059,67935.0,67932.0,0.151903]
[1729821548879,0.23427306,67935.0,67932.0,0.151903]
[1729821549099,0.19011059,67935.0,67932.0,0.151903]
[1729821549513,0.19011059,67935.0,67933.0,0.147203]
[1729821551448,0.179068,67935.0,67933.0,0.147203]
[1729821552906,0.179068,67935.0,67934.0,0.147201]
[1729821553353,0.001668,67935.0,67934.0,0.151899]
[1729821554923,0.01547169,67935.0,67934.0,0.151899]
[1729821555290,0.02927472,67935.0,67934.0,0.151899]
[1729821555649,0.04307769,67935.0,67934.0,0.151899]
[1729821555976,0.05412011,67935.0,67934.0,0.151899]
[1729821556638,0.04307769,67935.0,67934.0,0.151899]
[1729821557714,0.02927466,67935.0,67934.0,0.151899]
[1729821558129,0.04307755,67935.0,67934.0,0.151899]
[1729821560778,0.02927458,67935.0,67934.0,0.151899]
[1729821561819,0.01547169,67935.0,67934.0,0.151899]
[1729821562496,0.001668,67935.0,67934.0,0.151899]
[1729821563402,0.0154709,67935.0,67934.0,0.151899]
[1729821563652,0.001668,67935.0,67934.0,0.151899]
[1729821564082,0.001668,67935.0,67934.0,0.30240281]
[1729821564306,0.001668,67935.0,67934.0,0.47484656]
[1729821564514,0.001668,67935.0,67934.0,0.47190281]
[1729821566246,0.01546985,67935.0,67934.0,0.47190281]
[1729821566700,0.001668,67935.0,67934.0,0.47190281]
[1729821567508,0.001668,67935.0,67934.0,0.51593881]
[1729821567938,0.001668,67935.0,67934.0,0.47690281]
[1729821568358,0.001668,67935.0,67934.0,0.54300788]
[1729821568799,0.001668,67935.0,67934.0,0.47690281]
[1729821569239,0.001668,67935.0,67934.0,0.47190281]
[1729821569457,0.001668,67935.0,67934.0,0.46720481]
[1729821569674,0.001668,67935.0,67934.0,0.52091384]
[1729821572383,0.001668,67935.0,67934.0,0.47690281]
[1729821573235,0.001668,67935.0,67934.0,0.75126394]
[1729821573469,0.001668,67935.0,67934.0,0.74611034]
[1729821573612,0.001668,67935.0,67934.0,0.68015887]
[1729821573829,0.001668,67935.0,67934.0,0.68215887]
[1729821574215,0.001668,67935.0,67934.0,0.72793297]
[1729821574760,0.001668,67935.0,67934.0,0.72593297]
[1729821575274,0.001668,67935.0,67934.0,0.81382066]
[1729821575481,0.001668,67935.0,67934.0,0.81381844]
[1729821575663,0.001668,67935.0,67934.0,0.76804434]
[1729821576252,0.001668,67935.0,67934.0,0.79752434]
[1729821577658,0.001668,67935.0,67934.0,0.70963887]
[1729821579436,0.001668,67935.0,67934.0,0.7755091]
[1729821582370,0.001668,67935.0,67934.0,0.70963887]
[1729821583213,0.001668,67935.0,67934.0,0.71163887]
[1729821583408,0.001668,67935.0,67934.0,0.70963887]
[1729821584662,0.001668,67935.0,67934.0,0.75352955]
[1729821585492,0.001668,67935.0,67934.0,0.76352858]
[1729821587580,0.001668,67935.0,67934.0,0.71963887]
[1729821587818,0.001668,67935.0,67934.0,0.76352723]
[1729821588965,0.001668,67935.0,67934.0,0.76552723]
[1729821589421,0.001668,67935.0,67934.0,0.76352723]
[1729821592369,0.001668,67935.0,67934.0,0.76552723]
[1729821593039,0.001668,67948.0,67934.0,0.76552723]
[1729821593040,0.001668,67948.0,67947.0,0.156871]
[1729821593268,0.001668,67948.0,67947.0,0.30737481]
[1729821594915,0.001668,67948.0,67947.0,0.30237481]
[1729821595372,0.001668,67948.0,67947.0,0.40563087]
[1729821596267,0.001668,67948.0,67947.0,0.43511087]
[1729821596508,0.001668,67948.0,67947.0,0.40563087]
[1729821597442,0.001668,67948.0,67947.0,0.41305311]
[1729821598855,0.001668,67948.0,67947.0,0.63845498]
[1729821599107,0.001668,67948.0,67947.0,0.41805311]
[1729821608702,0.001668,67948.0,67947.0,0.49185311]
[1729821615256,0.001668,67948.0,67947.0,0.53578024]
[1729821615702,0.001668,67948.0,67947.0,0.80677259]
[1729821615954,0.001668,67948.0,67947.0,0.73582583]
[1729821616175,0.01378283,67955.0,67954.0,0.156856]
[1729821616403,0.01378283,67955.0,67954.0,0.59791455]
[1729821616620,0.01378283,67955.0,67954.0,0.73605952]
[1729821616839,0.01378283,67955.0,67954.0,0.75801322]
[1729821617030,0.01378283,67955.0,67954.0,0.67019845]
[1729821617311,0.001668,67957.0,67956.0,0.156852]
[1729821617521,0.001668,67957.0,67956.0,0.30735581]
[1729821619240,0.001668,67957.0,67956.0,0.51386793]
[1729821619675,0.001668,67957.0,67956.0,0.55776473]
[1729821620583,0.001668,67957.0,67956.0,0.51386793]
[1729821620781,0.001668,67957.0,67956.0,0.55775245]
[1729821621261,0.001668,67957.0,67956.0,0.51386793]
[1729821621691,0.001668,67957.0,67956.0,0.55775245]
[1729821622117,0.001668,67957.0,67956.0,0.51386793]
[1729821625839,0.001668,67957.0,67956.0,0.75925245]
[1729821626073,0.001668,67957.0,67956.0,0.84362399]
[1729821626305,0.001668,67957.0,67956.0,0.82106793]
[1729821626522,0.001668,67957.0,67956.0,0.88691079]
[1729821626779,0.001668,67957.0,67956.0,0.96210549]
[1729821627215,0.001668,67957.0,67956.0,1.06531544]
[1729821627659,0.001668,67957.0,67956.0,0.9840774]
[1729821628088,0.001668,67957.0,67956.0,0.89626263]
[1729821628300,0.001668,67957.0,67956.0,1.00588748]
[1729821628554,0.001668,67957.0,67956.0,1.00388748]
[1729821628976,0.001668,67957.0,67956.0,0.89426263]
[1729821629195,0.001668,67957.0,67956.0,0.98196913]
[1729821629409,0.001668,67957.0,67956.0,0.99951869]
[1729821629854,0.001668,67961.0,67960.0,0.69003512]
[1729821630072,0.001668,67961.0,67960.0,0.84053893]
[1729821630332,0.001668,67961.0,67960.0,0.88437486]
[1729821630768,0.001668,67961.0,67960.0,0.89421546]
[1729821631002,0.001668,67961.0,67960.0,0.89621546]
[1729821631224,0.001668,67961.0,67960.0,0.98387519]
[1729821631448,0.001668,67961.0,67960.0,1.01809093]
[1729821631660,0.001668,67961.0,67960.0,1.02006987]
[1729821632062,0.001668,67961.0,67960.0,1.01806987]
[1729821632283,0.001668,67961.0,67960.0,1.01804896]
[1729821632736,0.001668,67961.0,67960.0,0.89421546]
[1729821632973,0.001668,67961.0,67960.0,0.9324312]
[1729821633214,0.001668,67961.0,67960.0,0.89621546]
[1729821633456,0.001668,67961.0,67960.0,0.98381847]
[1729821633932,0.054561,67962.0,67961.0,0.289841]
[1729821634173,0.054561,67962.0,67961.0,0.48802134]
[1729821634410,0.054561,67962.0,67961.0,0.55171485]
[1729821634647,0.054561,67962.0,67961.0,0.44034481]
[1729821635093,0.054561,67962.0,67961.0,0.55167762]
[1729821635316,0.054561,67962.0,67961.0,0.55367762]
[1729821635577,0.054561,67962.0,67961.0,0.52867762]
[1729821635808,0.054561,67962.0,67961.0,0.56439733]
[1729821636305,0.054561,67962.0,67961.0,0.62385693]
[1729821636306,0.060561,67962.0,67961.0,0.62385693]
[1729821636533,0.060561,67962.0,67961.0,0.56439733]
[1729821636752,0.060561,67962.0,67961.0,0.59387733]
[1729821636968,0.060561,67962.0,67961.0,0.60120572]
[1729821637194,0.060561,67962.0,67961.0,0.55740926]
[1729821637421,0.060561,67962.0,67961.0,0.66066532]
[1729821637644,0.060561,67962.0,67961.0,0.70446178]
[1729821637912,0.060561,67962.0,67961.0,0.60120572]
[1729821638159,0.060561,67962.0,67961.0,0.70446178]
[1729821638383,0.060561,67962.0,67961.0,0.72746178]
[1729821638601,0.060561,67962.0,67961.0,0.68366532]
[1729821638823,0.060561,67962.0,67961.0,0.74935883]
[1729821639045,0.060561,67962.0,67961.0,0.79498578]
[1729821642792,0.060561,67962.0,67961.0,0.69172972]
[1729821643973,0.057261,67962.0,67961.0,0.69172972]
[1729821644178,0.057261,67962.0,67961.0,0.79497446]
[1729821646228,0.058911,67962.0,67961.0,0.79497446]
[1729821647145,0.058911,67962.0,67961.0,0.79697446]
[1729821647361,0.058911,67962.0,67961.0,0.81886852]
[1729821647603,0.058911,67962.0,67961.0,0.73129227]
[1729821647842,0.058911,67962.0,67961.0,0.81883564]
[1729821648318,0.058911,67962.0,67961.0,0.81882969]
[1729821648778,0.058911,67962.0,67961.0,0.73129227]
[1729821649005,0.058911,67962.0,67961.0,0.81883056]
[1729821649495,0.058911,67962.0,67961.0,1.41345027]
[1729821649735,0.058911,67962.0,67961.0,1.62202058]
[1729821650196,0.058911,67962.0,67961.0,1.51255027]
[1729821650902,0.058911,67962.0,67961.0,1.62202058]
[1729821651828,0.058911,67962.0,67961.0,1.51255027]
[1729821652254,0.058911,67962.0,67961.0,3.12196458]
[1729821653670,0.0965,67978.0,67977.0,0.156806]
[1729821653895,0.0965,67978.0,67977.0,0.41056587]
[1729821654609,0.1796,67981.0,67980.0,0.1518]
[1729821654840,0.1796,67981.0,67980.0,0.40555987]
[1729821655538,0.1796,67981.0,67980.0,0.41055987]
[1729821656228,0.0968,67981.0,67980.0,0.41055987]
[1729821658060,0.0968,67981.0,67980.0,0.4180516]
[1729821661187,0.173,67981.0,67980.0,0.30979554]
[1729821663058,0.173,67981.0,67980.0,0.1518]
[1729821663747,0.18679425,67981.0,67980.0,0.1518]
[1729821664415,0.0762,67981.0,67978.0,0.004698]
[1729821664664,0.0762,67981.0,67969.0,0.294249]
[1729821664665,0.173,67977.0,67976.0,0.004698]
[1729821666344,0.173,67977.0,67976.0,0.151808]
[1729821666807,0.173,67977.0,67976.0,0.004698]
[1729821667321,0.173,67977.0,67976.0,0.151808]
[1729821668016,0.18679586,67977.0,67976.0,0.151808]
[1729821668730,0.173,67977.0,67976.0,0.151808]
[1729821669908,0.19783254,67977.0,67976.0,0.151808]
[1729821670373,0.173,67977.0,67976.0,0.151808]
[1729821672157,0.173,67977.0,67976.0,0.25506406]
[1729821672375,0.173,67977.0,67976.0,0.47546593]
[1729821672622,0.0968,67977.0,67976.0,0.25506406]
[1729821672842,0.11059585,67977.0,67976.0,0.40556787]
[1729821673057,0.01379585,67977.0,67976.0,0.40556787]
[1729821673272,0.03862839,67977.0,67976.0,0.40556787]
[1729821673940,0.01379585,67977.0,67976.0,0.40556787]
[1729821674582,0.01379503,67977.0,67976.0,0.40556787]
[1729821675225,0.177548,67981.0,67980.0,0.147102]
[1729821675447,0.177548,67981.0,67980.0,0.25035806]
[1729821677350,0.001648,67981.0,67980.0,0.25035806]
[1729821678503,0.001648,67981.0,67980.0,0.40555987]
[1729821680968,0.01268369,67981.0,67980.0,0.40555987]
[1729821681203,0.001648,67981.0,67980.0,0.40555987]
[1729821683043,0.001648,67981.0,67980.0,0.41055987]
[1729821686573,0.001648,67981.0,67980.0,0.51381593]
[1729821691196,0.001648,67981.0,67980.0,0.61381593]
[1729821692052,0.001648,67981.0,67980.0,0.65767967]
[1729821693143,0.001648,67981.0,67980.0,0.61381593]
[1729821693357,0.001648,67981.0,67980.0,0.77801557]
[1729821693582,0.001648,67981.0,67980.0,0.86091557]
[1729821693834,0.001648,67981.0,67980.0,0.88284878]
[1729821694046,0.001648,67981.0,67980.0,0.79511593]
[1729821694521,0.001648,67981.0,67980.0,0.88283083]
[1729821694768,0.001648,67981.0,67980.0,0.88282345]
[1729821694997,0.001648,67981.0,67980.0,0.79511593]
[1729821695214,0.001648,67981.0,67980.0,0.88282412]
[1729821695432,0.001648,67981.0,67980.0,0.79511593]
[1729821695644,0.001648,67981.0,67980.0,0.88281881]
[1729821695881,0.001648,67981.0,67980.0,0.79511593]
[1729821696341,0.001648,67981.0,67980.0,0.88280468]
[1729821698502,0.001648,67981.0,67980.0,0.88480468]
[1729821698730,0.001648,67981.0,67980.0,0.88280468]
[1729821700307,0.001648,67981.0,67980.0,0.79511593]
[1729821700537,0.001648,67981.0,67980.0,0.79711593]
[1729821701416,0.001648,67981.0,67980.0,0.82656593]
[1729821702764,0.001648,67981.0,67980.0,0.88539093]
[1729821703520,0.001648,67981.0,67980.0,0.95113641]
[1729821704497,0.001648,67981.0,67980.0,0.96113641]
[1729821704719,0.001648,67981.0,67980.0,0.89539093]
[1729821705844,0.001648,67981.0,67980.0,0.89339093]
[1729821706314,0.001648,67981.0,67980.0,0.97536504]
[1729821706998,0.001648,67981.0,67980.0,1.02676481]
[1729821707627,0.001648,67981.0,67980.0,1.02672305]
[1729821708218,0.001648,67981.0,67980.0,1.46478211]
[1729821708418,0.001648,67981.0,67980.0,1.27387906]
[1729821710074,0.001648,67981.0,67980.0,1.27587906]
[1729821710311,0.001648,67981.0,67980.0,1.21505406]
[1729821710517,0.001648,67981.0,67980.0,1.01277052]
[1729821713164,0.001648,67981.0,67980.0,0.90325106]
[1729821717302,0.001648,67981.0,67980.0,1.22749206]
[1729821718345,0.001648,67981.0,67980.0,1.35697991]
[1729821718561,0.001648,67981.0,67980.0,1.35897991]
[1729821719300,0.001648,67981.0,67980.0,1.35697991]
[1729821720011,0.00242519,67994.0,67993.0,0.009698]
[1729821720247,0.00242519,67994.0,67993.0,0.65762699]
[1729821720467,0.00887004,67994.0,67993.0,0.65762699]
[1729821720686,0.00242519,67994.0,67993.0,0.40727481]
[1729821720940,0.00242519,67994.0,67993.0,0.61378693]
[1729821721382,0.00242519,67994.0,67993.0,0.65949141]
[1729821721612,0.00242519,67994.0,67993.0,0.74717877]
[1729821722285,0.00242519,67994.0,67993.0,0.70147429]
[1729821724324,0.00242519,67994.0,67993.0,0.61378693]
[1729821724686,0.00242519,67994.0,67993.0,0.62158822]
[1729821724924,0.00242519,67994.0,67993.0,0.70926575]
[1729821725345,0.00242519,67994.0,67993.0,0.62158822]
[1729821725548,0.00242519,67994.0,67993.0,0.7092616]
[1729821725750,0.00242519,67994.0,67993.0,0.60600554]
[1729821725959,0.09722519,67994.0,67993.0,0.60600554]
[1729821726324,0.00242519,67994.0,67993.0,0.60600554]
[1729821726796,0.00242519,67994.0,67993.0,0.7092616]
[1729821726969,0.00242519,67994.0,67993.0,0.60600554]
[1729821727590,0.00242519,67994.0,67993.0,0.7092616]
[1729821727800,0.00242519,67994.0,67993.0,0.66728289]
[1729821728184,0.00242519,67994.0,67993.0,0.7768775]
[1729821728415,0.00242519,67994.0,67993.0,0.7778775]
[1729821728652,0.00242519,67994.0,67993.0,0.7768775]
[1729821729374,0.00242519,67994.0,67993.0,0.46077077]
[1729821729591,0.00407319,67994.0,67993.0,0.66728289]
[1729821732665,0.001668,67997.0,67993.0,0.66728289]
[1729821732901,0.0997,68017.0,68015.0,0.004698]
[1729821733157,0.0997,68017.0,68015.0,0.40548387]
[1729821733378,0.00833259,68016.0,68015.0,0.40548387]
[1729821733594,0.001666,68016.0,68015.0,0.40548387]
[1729821737888,0.001666,68016.0,68015.0,0.41330169]
[1729821743085,0.001666,68016.0,68015.0,0.52155775]
[1729821743321,0.001666,68016.0,68015.0,0.41830169]
[1729821744472,0.001666,68016.0,68015.0,0.62155775]
[1729821744713,0.001666,68016.0,68015.0,0.51830169]
[1729821745195,0.001666,68016.0,68015.0,0.62155775]
[1729821746368,0.001666,68016.0,68015.0,0.64455775]
[1729821746867,0.001666,68016.0,68015.0,0.68831853]
[1729821747090,0.001666,68016.0,68015.0,0.68825392]
[1729821747356,0.001666,68016.0,68015.0,0.64455775]
[1729821747586,0.001666,68016.0,68015.0,0.68825392]
[1729821748296,0.001666,68016.0,68015.0,0.74035775]
[1729821748537,0.001666,68025.0,68024.0,0.36321612]
[1729821748770,0.001666,68025.0,68024.0,0.61371993]
[1729821750409,0.001666,68025.0,68024.0,0.63671993]
[1729821751048,0.001666,68025.0,68024.0,0.71811367]
[1729821751299,0.089766,68037.0,68036.0,0.151679]
[1729821751512,0.089766,68037.0,68036.0,0.40543887]
[1729821752608,0.0785,68044.0,68036.0,0.25845787]
[1729821752841,0.0785,68044.0,68043.0,0.25022106]
[1729821753065,0.0785,68044.0,68043.0,0.40072487]
[1729821754414,0.1726,68044.0,68043.0,0.40072487]
[1729821756075,0.1726,68043.0,68042.0,0.004698]
[1729821756810,0.146966,68043.0,68039.0,0.004698]
[1729821757055,0.1781,68042.0,68039.0,0.004698]
[1729821757290,0.1781,68044.0,68039.0,0.004698]
[1729821757527,0.0177824,68045.0,68039.0,0.004698]
[1729821757771,0.1781,68042.0,68036.0,0.004698]
[1729821757989,0.0997,68038.0,68037.0,0.004698]
[1729821759085,0.0997,68038.0,68036.0,0.004698]
[1729821759304,0.0997,68036.0,68034.0,0.004698]
[1729821759543,0.0784,68035.0,68034.0,0.004698]
[1729821759989,0.0784,68035.0,68024.0,0.074624]
[1729821759990,0.0997,68033.0,68030.0,0.004698]
[1729821760254,0.0784,68030.0,68028.0,0.004698]
[1729821760484,0.0997,68029.0,68028.0,0.10795406]
[1729821760707,0.0997,68029.0,68028.0,0.25495206]
[1729821761911,0.0715,68029.0,68028.0,0.10795406]
[1729821762181,0.0715,68029.0,68025.0,0.294007]
[1729821762182,0.0715,68029.0,68025.0,0.40196106]
[1729821762411,0.1499,68029.0,68027.0,0.146999]
[1729821762647,0.1499,68029.0,68025.0,0.40196106]
[1729821762884,0.1499,68029.0,68028.0,0.146998]
[1729821763349,0.1499,68029.0,68027.0,0.176998]
[1729821763585,0.1499,68029.0,68028.0,0.146998]
[1729821764046,0.1499,68029.0,68028.0,0.25025406]
[1729821765673,0.1499,68029.0,68028.0,0.25495206]
[1729821766132,0.04386004,68058.0,68028.0,0.25495206]
[1729821766133,0.0784,68039.0,68038.0,0.151674]
[1729821766362,0.0784,68039.0,68038.0,0.30101695]
[1729821767300,0.0921458,68039.0,68038.0,0.30101695]
[1729821767758,0.0784,68039.0,68038.0,0.30101695]
[1729821771094,0.0784,68043.0,68039.0,0.293948]
[1729821771329,0.0784,68043.0,68042.0,0.146968]
[1729821771777,0.0784,68043.0,68039.0,0.298646]
[1729821771993,0.0784,68043.0,68041.0,0.146968]
[1729821772430,0.0784,68043.0,68040.0,0.293944]
[1729821772431,0.0784,68043.0,68042.0,0.29631095]
[1729821772864,0.0784,68043.0,68042.0,0.30100895]
[1729821777695,0.09380268,68043.0,68042.0,0.30100895]
[1729821777917,0.10755829,68043.0,68042.0,0.151666]
[1729821778131,0.10755829,68043.0,68042.0,0.146968]
[1729821778346,0.08005,68043.0,68042.0,0.146968]
[1729821778565,0.099,68042.0,68040.0,0.14697]
[1729821778793,0.099,68042.0,68039.0,0.151672]
[1729821779007,0.099,68042.0,68039.0,0.004698]
[1729821779221,0.099,68042.0,68037.0,0.293957]
[1729821779222,0.02751316,68041.0,68037.0,0.293957]
[1729821779437,0.02751316,68041.0,68039.0,0.146974]
[1729821779673,0.02751316,68041.0,68040.0,0.146972]
[1729821779894,0.099,68042.0,68037.0,0.298655]
[1729821780126,0.099,68042.0,68039.0,0.146973]
[1729821780345,0.099,68042.0,68040.0,0.146971]
[1729821780562,0.099,68042.0,68039.0,0.146974]
[1729821780838,0.099,68042.0,68038.0,0.004698]
[1729821781049,0.099,68042.0,68038.0,0.298649]
[1729821781268,0.099,68042.0,68040.0,0.146972]
[1729821782341,0.099,68042.0,68039.0,0.146973]
[1729821782780,0.245969,68042.0,68036.0,0.004698]
[1729821782994,0.245969,68042.0,68036.0,0.151678]
[1729821783232,0.099,68042.0,68037.0,0.146977]
[1729821783461,0.099,68042.0,68038.0,0.146974]
[1729821783686,0.099,68042.0,68039.0,0.146974]
[1729821784143,0.099,68042.0,68037.0,0.293957]
[1729821784363,0.099,68042.0,68040.0,0.146971]
[1729821784849,0.01375688,68041.0,68040.0,0.146971]
[1729821785526,0.099,68042.0,68040.0,0.146971]
[1729821786380,0.099,68042.0,68040.0,0.24988049]
[1729821787130,0.099,68042.0,68040.0,0.10290949]
[1729821787312,0.099,68042.0,68041.0,0.14697]
[1729821787679,0.099,68042.0,68040.0,0.10290949]
[1729821787885,0.099,68042.0,68040.0,0.24988049]
[1729821788993,0.099,68042.0,68041.0,0.14697]
[1729821790021,0.10065,68042.0,68041.0,0.14697]
[1729821790656,0.00165,68042.0,68041.0,0.14697]
[1729821793971,0.00165,68042.0,68041.0,0.151668]
[1729821795673,0.01541387,68042.0,68041.0,0.151668]
[1729821797385,0.01541387,68042.0,68041.0,0.30217181]
[1729821798520,0.00165,68042.0,68041.0,0.30217181]
[1729821805095,0.00165,68042.0,68041.0,0.39417181]
[1729821805980,0.00165,68042.0,68041.0,0.39917181]
[1729821812710,0.00165,68042.0,68041.0,0.44298526]
[1729821812928,0.00165,68042.0,68041.0,0.39917181]
[1729821818121,0.00165,68042.0,68041.0,0.46489199]
[1729821818591,0.00165,68042.0,68041.0,0.46489275]
[1729821818807,0.00165,68042.0,68041.0,0.39917181]
[1729821819272,0.00165,68042.0,68041.0,0.49917181]
[1729821819977,0.00165,68042.0,68041.0,0.56488734]
[1729821820199,0.00165,68042.0,68041.0,0.49917181]
[1729821821498,0.00165,68042.0,68041.0,0.56488672]
[1729821821705,0.00165,68042.0,68041.0,0.49917181]
[1729821822408,0.00165,68042.0,68041.0,0.57737181]
[1729821822861,0.00165,68042.0,68041.0,0.57537181]
[1729821823101,0.00165,68042.0,68041.0,0.66299046]
[1729821823556,0.00165,68042.0,68041.0,0.57537181]
[1729821824208,0.00165,68042.0,68041.0,0.57737181]
[1729821824420,0.00165,68042.0,68041.0,0.66299046]
[1729821827548,0.00165,68042.0,68041.0,0.57537181]
[1729821827767,0.00165,68042.0,68041.0,0.68489513]
[1729821827968,0.00165,68042.0,68041.0,0.68689513]
[1729821828176,0.00165,68042.0,68041.0,0.68489513]
[1729821829147,0.00165,68042.0,68041.0,0.68493721]
[1729821829350,0.00165,68042.0,68041.0,0.7306241]
[1729821830328,0.00165,68042.0,68041.0,0.6210587]
[1729821831368,0.00165,68042.0,68041.0,0.68495766]
[1729821833765,0.00165,68042.0,68041.0,0.68495277]
[1729821834196,0.00165,68042.0,68041.0,0.57537181]
[1729821834408,0.00165,68042.0,68041.0,0.40717181]
[1729821834630,0.00165,68042.0,68041.0,0.61966226]
[1729821834833,0.00165,68042.0,68041.0,0.5100813]
[1729821835058,0.00165,68042.0,68041.0,0.61966226]
[1729821835517,0.00165,68042.0,68041.0,0.5100813]
[1729821835719,0.00165,68042.0,68041.0,0.61966226]
[1729821835936,0.00165,68042.0,68041.0,0.5395313]
[1729821836149,0.00165,68042.0,68041.0,0.43662181]
[1729821836363,0.00165,68042.0,68041.0,0.59275919]
[1729821836800,0.00165,68042.0,68041.0,0.5050813]
[1729821837044,0.00165,68042.0,68041.0,0.40217181]
[1729821837266,0.00165,68042.0,68041.0,0.54893114]
[1729821837708,0.00165,68042.0,68041.0,0.5050813]
[1729821837922,0.00165,68042.0,68041.0,0.4050813]
[1729821838387,0.00165,68042.0,68041.0,0.44894031]
[1729821840780,0.00165,68042.0,68041.0,0.2984365]
[1729821841231,0.00165,68042.0,68041.0,0.25457749]
[1729821841446,0.00165,68042.0,68041.0,0.151668]
[1729821841891,0.00165,68042.0,68041.0,0.25457749]
[1729821843267,0.00165,68042.0,68041.0,0.151668]
[1729821843499,0.08085,68042.0,68041.0,0.151668]
[1729821843720,0.17245,68042.0,68041.0,0.151668]
[1729821845257,0.17245,68042.0,68041.0,0.14697]
[1729821845473,0.0792,68040.0,68038.0,0.146975]
[1729821845711,0.0916,68039.0,68038.0,0.146975]
[1729821848776,0.0916,68039.0,68033.0,0.293974]
[1729821848995,0.005,68040.0,68030.0,0.22509987]
[1729821848996,0.0962,68037.0,68035.0,0.146981]
[1729821849220,0.0962,68036.0,68033.0,0.146985]
[1729821849445,0.0962,68034.0,68033.0,0.146985]
[1729821849718,0.0962,68034.0,68029.0,0.294816]
[1729821849925,0.0962,68032.0,68030.0,0.146993]
[1729821850122,0.0962,68032.0,68031.0,0.146991]
[1729821851303,0.0962,68032.0,68029.0,0.000825]
[1729821851509,0.1757,68031.0,68029.0,0.000825]
[1729821851709,0.1757,68032.0,68029.0,0.000825]
[1729821851910,0.1757,68031.0,68029.0,0.000825]
[1729821852408,0.1757,68030.0,68029.0,0.000825]
[1729821853957,0.1807,68030.0,68029.0,0.000825]
[1729821854802,0.1757,68030.0,68029.0,0.000825]
[1729821855011,0.1807,68030.0,68029.0,0.000825]
[1729821855647,0.1807,68030.0,68029.0,0.147821]
[1729821856278,0.1807,68030.0,68029.0,0.000825]
[1729821857677,0.1807,68030.0,68029.0,0.147821]
[1729821857886,0.0795,68030.0,68029.0,0.147821]
[1729821858110,0.1757,68034.0,68032.0,0.004698]
[1729821858319,0.005,68035.0,68034.0,0.146985]
[1729821858556,0.005,68035.0,68034.0,0.151683]
[1729821862311,0.005,68037.0,68036.0,0.146981]
[1729821867494,0.0795,68038.0,68036.0,0.146981]
[1729821867919,0.005,68039.0,68036.0,0.146981]
[1729821868139,0.005,68040.0,68038.0,0.146976]
[1729821868347,0.005,68040.0,68037.0,0.146977]
[1729821868802,0.005,68039.0,68037.0,0.146977]
[1729821869230,0.005,68039.0,68036.0,0.39686949]
[1729821869432,0.005,68040.0,68036.0,0.39686949]
[1729821869688,0.005,68041.0,68036.0,0.54384849]
[1729821869919,0.005,68040.0,68038.0,0.146976]
[1729821870131,0.00165,68042.0,68041.0,0.14697]
[1729821870366,0.00165,68042.0,68041.0,0.151668]
[1729821875958,0.00165,68042.0,68041.0,0.14697]
[1729821876222,0.00165,68042.0,68041.0,0.151668]
[1729821876427,0.00165,68042.0,68041.0,0.14697]
[1729821876678,0.00165,68042.0,68038.0,0.151673]
[1729821876903,0.00165,68042.0,68039.0,0.151672]
[1729821877122,0.00165,68042.0,68037.0,0.146978]
[1729821877123,0.1753,68041.0,68037.0,0.146978]
[1729821877576,0.1753,68041.0,68036.0,0.14698]
[1729821878019,0.1753,68041.0,68036.0,0.146981]
[1729821878241,0.01100458,68040.0,68036.0,0.146981]
[1729821878659,0.01100458,68040.0,68036.0,0.146979]
[1729821878877,0.01100458,68040.0,68035.0,0.004698]
[1729821879092,0.1753,68041.0,68037.0,0.146978]
[1729821880124,0.1753,68041.0,68035.0,0.004698]
[1729821880344,0.1753,68041.0,68038.0,0.146976]
[1729821882094,0.01375499,68040.0,68038.0,0.146976]
[1729821882595,0.1753,68041.0,68038.0,0.146976]
[1729821882829,0.32227,68041.0,68035.0,0.15168]
[1729821883040,0.146974,68039.0,68033.0,0.22040187]
[1729821883256,0.0942,68038.0,68033.0,0.22040187]
[1729821883478,0.146978,68037.0,68031.0,0.146991]
[1729821883709,0.241176,68038.0,68030.0,0.004698]
[1729821883933,0.0942,68038.0,68032.0,0.146988]
[1729821884143,0.29193614,68038.0,68029.0,0.000825]
[1729821884325,0.0811,68037.0,68031.0,0.146991]
[1729821884460,0.0811,68037.0,68029.0,0.000825]
[1729821884681,0.005,68036.0,68029.0,0.000825]
[1729821884894,0.005,68036.0,68030.0,0.146993]
[1729821885136,0.005,68036.0,68031.0,0.146991]
[1729821885352,0.005,68036.0,68032.0,0.22040187]
[1729821885557,0.005,68036.0,68033.0,0.146985]
[1729821885787,0.005,68036.0,68031.0,0.14699]
[1729821886011,0.005,68036.0,68032.0,0.146989]
[1729821887143,0.01101629,68035.0,68032.0,0.146989]
[1729821887787,0.005,68036.0,68032.0,0.146989]
[1729821888026,0.01376065,68035.0,68032.0,0.146989]
[1729821888656,0.005,68036.0,68032.0,0.146989]
[1729821888880,0.01101397,68035.0,68032.0,0.146989]
[1729821889805,0.005,68036.0,68032.0,0.146989]
[1729821890030,0.0811,68037.0,68032.0,0.146989]
[1729821890300,0.005,68036.0,68032.0,0.146989]
[1729821892094,0.01101276,68035.0,68032.0,0.146989]
[1729821892539,0.01376755,68035.0,68030.0,0.39689649]
[1729821892769,0.01376755,68035.0,68033.0,0.146986]
[1729821893295,0.005,68036.0,68033.0,0.146986]
[1729821893501,0.005,68036.0,68032.0,0.146989]
[1729821894173,0.01376587,68034.0,68032.0,0.146989]
[1729821894569,0.005,68036.0,68032.0,0.146989]
[1729821895209,0.01101279,68034.0,68031.0,0.293983]
[1729821895420,0.01101279,68034.0,68033.0,0.146987]
[1729821895662,0.005,68036.0,68033.0,0.146987]
[1729821895876,0.005,68036.0,68034.0,0.03]